Cogmind - Beta 16 @@@ ROGUE MODE // 2025.11.22 @ 20:16:31 Player: opdo Result: Destroyed by 6L-XI1(R) with Subdweller Laser Performance ------------- Evolutions (0) 0 Regions Visited (3) 600 Robots Destroyed (18) 90 Value Destroyed (397) 397 Prototype IDs (0) 0 Alien Tech Used (0) 0 Bonus (0) 0 TOTAL SCORE: 1087 Bonus ------- None Cogmind --------- Core Integrity 0/250 Matter 187/300 Energy 85/100 System Corruption 1% Temperature Cool (6) Movement Rolling (110) Ox2 Location -10/Subcaves Parts ------- > --- POWER (1) -------- (None) > --- PROPULSION (2) --- Light Treads Wheel > --- UTILITY (2) ------ Large Storage Unit Core Shielding > --- WEAPON (2) ------- (None) > --- INVENTORY (15) --- Aluminum Leg Heat Sink High-capacity Storage Unit Medium Matter Pod (0) Improved Terrain Scanner Terrain Scan Processor Improved Targeting Computer Improved Targeting Computer Light Armor Plating Stasis Trap (100%) Peak State ------------ > --- POWER ------------ Ion Engine > --- PROPULSION ------- Aluminum Leg Aluminum Leg > --- UTILITY ---------- Large Storage Unit Core Shielding > --- WEAPON ----------- Light Assault Rifle Rocket Launcher > --- INVENTORY -------- Light Treads Light Treads Aluminum Leg Wheel High-capacity Storage Unit Medium Matter Pod Improved Terrain Scanner Terrain Scan Processor Improved Targeting Computer Improved Targeting Computer Light Armor Plating Light Assault Rifle Light Assault Rifle Mining Laser Stasis Trap [Rating: 10] Favorites ----------- Power Ion Engine Engine Ion Engine Propulsion Aluminum Leg Treads Light Treads Leg Aluminum Leg Wheel Compact Wheel Utility Large Storage Unit Device Improved Terrain Scanner Storage Large Storage Unit Protection Core Shielding Weapon Light Assault Rifle Ballistic Gun Light Assault Rifle Launcher Rocket Launcher Special Weapon Mining Laser Build | -11 -10 -10 -10 ------- Run | Yrd Mat Min Sub Slots Evolved . | . . . . Power . | . . . . Propulsion . | . . . . Utility . | . . . . Weapon . | . . . . Parts Attached 21 | 8 6 2 5 Power 2 | 1 1 . . Engine 2 | 1 1 . . Core . | . . . . Reactor . | . . . . Propulsion 8 | 3 1 . 4 Treads 2 | . . . 2 Leg 4 | 2 1 . 1 Wheel 2 | 1 . . 1 Hover . | . . . . Flight . | . . . . Utility 5 | 2 3 . . Device 1 | 1 . . . Storage 3 | 1 2 . . Processor . | . . . . Hackware . | . . . . Protection 1 | . 1 . . Artifact . | . . . . Weapon 6 | 2 1 2 1 Energy Gun . | . . . . Energy Cannon . | . . . . Ballistic Gun 4 | 2 1 1 . Ballistic Cannon . | . . . . Launcher 1 | . . 1 . Special Weapon 1 | . . . 1 Impact Weapon . | . . . . Slashing Weapon . | . . . . Piercing Weapon . | . . . . Special Melee Weapon . | . . . . Unidentified Prototypes . | . . . . Parts Lost 12 | . 3 . 9 Power 2 | . 1 . 1 Propulsion 4 | . 1 . 3 Utility . | . . . . Weapon 6 | . 1 . 5 Highest Loss Streak 4 | . 2 . 4 To Critical Strikes . | . . . . Average Backups 12 | 1 7 14 11 Power . | . . . . Propulsion 3 | 1 3 3 3 Utility 6 | . 2 7 7 Weapon 2 | . . 3 1 Tool/Special . | . . . . Unused Backups 7 | . . . 7 Power . | . . . . Propulsion . | . . . . Utility 7 | . . . 7 Weapon . | . . . . Tool/Special . | . . . . Average Slot Usage (%) 95 | . 95 100 83 Engine 11 | . 12 14 . Treads 2 | . . . 11 Leg 25 | . 25 28 16 Device 2 | . 10 . 2 Storage 14 | . 14 14 14 Protection 11 | . 3 14 11 Ballistic Gun 27 | . 27 27 23 Peak Build Rating 10 | 9 9 9 10 Average Rating 8 | 4 8 8 7 On Entrance 6 | . 9 8 9 Avg Prop Armor Cover (%) . | . . . . Naked Turns . | . . . . Heaviest Build 31 | 14 29 28 31 Greatest Support 40 | 20 20 20 40 Greatest Overweight (x) 2 | . 2 1 1 Average Overweight (x) . | . . 1 . Largest Inventory Capacity 15 | 8 15 15 15 Average Capacity 14 | 7 14 15 15 Most Carried 15 | 4 13 15 15 Average Carried 12 | 1 7 14 12 Final Capacity 15 | 8 15 15 15 Final Carried 15 | 4 13 15 10 Class Distribution -------------------- 100% | Mutant Dominant Class ---------------- Mutant | -10/Materials Mutant | -10/Mines Mutant | -10/Subcaves Resources | -11 -10 -10 -10 ----------- Run | Yrd Mat Min Sub Matter Collected 548 | 146 136 141 125 Remotely . | . . . . Salvage Created 421 | 26 178 87 130 Parts 33 | 3 14 7 9 Haulers Intercepted . | . . . . Recyclers Shooed 1 | . 1 . . Parts Field Recycled . | . . . . Retrieved Matter . | . . . . Parts Self-Destructed 10 | . . . 10 Prevented . | . . . . Parts Restored . | . . . . Kills | -11 -10 -10 -10 ------- Run | Yrd Mat Min Sub Combat Hostiles Destroyed 14 | . 8 2 4 Guns 10 | . 8 . 2 AOE 4 | . . 2 2 Classes Destroyed 4 | 1 2 . 1 Tunneler 2 | 1 . 1 . Turret 2 | . . . 2 Swarmer 8 | . 6 . 2 Grunt 6 | . 2 2 2 Best Kill Streak 3 | 1 3 3 2 Combat Bots Only 3 | . 3 2 2 Max Kills in Single Turn 2 | 1 1 2 1 Gunslinging . | . . . . Exploded 1 | . . 1 1 Melee . | . . . . Uniques/NPCs Destroyed . | . . . . Combat | -11 -10 -10 -10 -------- Run | Yrd Mat Min Sub Hostile Shots Fired 191 | . 54 2 135 Missed 58 | . 7 . 51 Hits 133 | . 47 2 84 Projectile 133 | . 47 2 84 Critical Strikes 6 | . 4 . 2 Actively Blocked 1 | . . . 1 Damage Taken 1489 | . 556 30 903 Core 261 | . 142 . 119 Absorbed by Shields . | . . . . Redirected to Shielding 23 | . 1 . 22 Core Remaining (%) 100 | 100 . . . Volleys Fired 71 | 1 29 2 39 Largest 2 | 2 2 2 2 Hottest 120 | 40 40 53 120 Shots Fired 135 | 2 53 5 75 Gun 125 | 2 53 3 67 Cannon . | . . . . Launcher 6 | . . 2 4 Special 4 | . . . 4 Kinetic 125 | 2 53 3 67 Thermal 4 | . . . 4 Explosive 6 | . . 2 4 Electromagnetic . | . . . . Robot Hit Streak 11 | . 7 11 11 Robot Miss Streak 3 | 2 3 . 3 Penetration Max . | . . . . Secondary Targets 3 | . 3 . . Max Gunslinging Chain 1 | . 1 . . Shots Hit Robots 88 | . 38 5 45 Core Hits 43 | 1 15 6 21 Critical Kills . | . . . . Critical Parts Destroyed . | . . . . Critical Strikes . | . . . . Melee Attacks . | . . . . Impact . | . . . . Slashing . | . . . . Piercing . | . . . . Sneak Attacks . | . . . . Combat Hostiles . | . . . . Follow-up Attacks . | . . . . Damage Inflicted 1107 | 14 367 201 525 Guns 721 | 14 360 23 324 Cannons . | . . . . Explosions 275 | . . 176 99 Melee . | . . . . Ramming 15 | . 7 2 6 Kinetic 721 | 14 360 23 324 Thermal 96 | . . . 96 Explosive 275 | . . 176 99 Electromagnetic . | . . . . Impact . | . . . . Slashing . | . . . . Piercing . | . . . . Highest Corruption 1 | . 1 1 1 Average Corruption 1 | . 1 1 1 Corruption Purged . | . . . . Corruption Blocked . | . . . . Effects 13 | . 2 7 4 Message Errors 1 | . 1 . . Matter Fused 4 | . . 1 3 Heat Flow Errors 4 | . . 3 1 Energy Discharges 3 | . 1 2 . Misfires 1 | . . 1 . Overload Shots . | . . . . Overflow Damage . | . . . . Projectiles . | . . . . Explosions . | . . . . Melee . | . . . . Knockbacks 1 | . . . 1 Impact 1 | . . . 1 Kinetic . | . . . . Secondary . | . . . . Self-Inflicted Damage 80 | . . . 80 Shots 2 | . . . 2 Rammed 3 | . . . 3 Targets Rammed 6 | . 2 1 3 Kicked 3 | . 2 1 . Crushed . | . . . . Highest Temperature 255 | . 56 255 98 Average Temperature 51 | . 30 81 28 Received Heat Transfer 753 | . 321 18 414 Siege Activations . | . . . . Martial Activations . | . . . . Shielding Activations . | . . . . Robots Disrupted . | . . . . Combat Hostiles . | . . . . Robots Corrupted . | . . . . Combat Hostiles . | . . . . Parts Fried . | . . . . Impact Corruptions . | . . . . Robots Melted . | . . . . Combat Hostiles . | . . . . Parts Melted . | . . . . Heat Transferred 200 | . . . 200 Parts Sabotaged . | . . . . Parts Stolen . | . . . . Parts Stripped . | . . . . Power Chain Reactions . | . . . . Alert | -11 -10 -10 -10 ------- Run | Yrd Mat Min Sub Maximum Alert Level . | . . . . Low Security (%) 100 | 100 100 100 . Level 1 . | . . . . Level 2 . | . . . . Level 3 . | . . . . Level 4 . | . . . . Level 5 . | . . . . High Security . | . . . . Max Security . | . . . . Peak Influence 75 | 5 75 69 . Initial 13 | . 3 13 . Average 11 | 1 35 4 . Influence Increases 564 | 5 195 69 295 Destroy 0b10 Robot/C 320 | . 160 40 120 Destroy 0b10 Robot/NC 10 | 5 . 5 . Destroy Leader 50 | . 30 10 10 Successful Hack 5 | . 5 . . Destroy Structure 14 | . . 14 . Lose Combat Pursuer 165 | . . . 165 Influence Decreases 519 | . 165 104 250 Entered New Map 24 | . 2 22 . Time Decay 375 | . 133 82 160 Lost Part 120 | . 30 . 90 Squads Dispatched . | . . . . Investigation . | . . . . Extermination . | . . . . Reinforcement . | . . . . Assault . | . . . . Garrison . | . . . . Intercept . | . . . . Searches Triggered . | . . . . Construction Impeded . | . . . . Haulers Reinforced . | . . . . Active Scanning Responses . | . . . . Cargo Convoy Interrupts . | . . . . Stealth | -11 -10 -10 -10 --------- Run | Yrd Mat Min Sub Distress Signals . | . . . . Communications Jammed . | . . . . Distress Signals . | . . . . Times Spotted 26 | . 10 2 14 Peak Tracking Total 6 | . 5 2 6 Tactical Retreats 3 | . . . 3 Traps | -11 -10 -10 -10 ------- Run | Yrd Mat Min Sub Traps Triggered 1 | . 1 . . Indirectly . | . . . . Trap Hack Attempts . | . . . . Triggered . | . . . . Disarmed . | . . . . Reprogrammed . | . . . . Reused . | . . . . Traps Extracted . | . . . . Installed . | . . . . Triggered . | . . . . Most Traps Carried 2 | . . 2 1 Machines | -11 -10 -10 -10 ---------- Run | Yrd Mat Min Sub Machines Disabled 3 | . . . 3 Max in Single Turn 2 | . . . 2 Machines Repaired . | . . . . Machines Dismantled . | . . . . Machines Sabotaged . | . . . . Overloaded Fab Kills . | . . . . Hacking | -11 -10 -10 -10 --------- Run | Yrd Mat Min Sub Machines Accessed 1 | . 1 . . Terminals 1 | . 1 . . Fabricators . | . . . . Repair Stations . | . . . . Recycling Units . | . . . . Scanalyzers . | . . . . Garrison Access . | . . . . Total Hacks 4 | . 4 . . Successful 3 | . 3 . . Failed 1 | . 1 . . Catastrophic . | . . . . Database Lockouts . | . . . . Manual 4 | . 4 . . Terminals 4 | . 4 . . Fabricators . | . . . . Repair Stations . | . . . . Recycling Units . | . . . . Scanalyzers . | . . . . Garrison Access . | . . . . Terminal Hacks 1 | . 1 . . Terminal Index 1 | . 1 . . Fabricator Hacks . | . . . . Repair Station Hacks . | . . . . Recycling Unit Hacks . | . . . . Scanalyzer . | . . . . Garrison Access Hacks . | . . . . Unauthorized Hacks 2 | . 2 . . Terminals 2 | . 2 . . Botnet 1 | . 1 . . Skim 1 | . 1 . . Fabricators . | . . . . Repair Stations . | . . . . Recycling Units . | . . . . Scanalyzers . | . . . . Garrison Access . | . . . . Data Cores Recovered . | . . . . Used . | . . . . Hacking Detections 1 | . 1 . . Full Trace Events . | . . . . Feedback Events . | . . . . Feedback Blocked . | . . . . Robot Schematics Acquired . | . . . . Robots Built . | . . . . Authchips . | . . . . Time . | . . . . Total Robot Build Rating . | . . . . Part Schematics Acquired . | . . . . Parts Built . | . . . . Authchips . | . . . . Time . | . . . . Total Part Build Rating . | . . . . Part Studies Acquired . | . . . . Parts Repaired . | . . . . Time . | . . . . Parts Recycled . | . . . . Recycled Matter . | . . . . Retrieved Matter . | . . . . Retrieved Components . | . . . . Parts Scanalyzed . | . . . . Part Schematics Acquired . | . . . . Parts Damaged . | . . . . Bothacking | -11 -10 -10 -10 ------------ Run | Yrd Mat Min Sub Used RIF Installer . | . . . . Robots Hacked . | . . . . Non-combat . | . . . . Combat . | . . . . Robot Hacks Applied . | . . . . Relay Couplers Released . | . . . . Fabnet Peak Effective % . | . . . . Robots Rewired . | . . . . Allies Hacked . | . . . . Hacks Repelled . | . . . . Allies | -11 -10 -10 -10 -------- Run | Yrd Mat Min Sub Total Allies . | . . . . Largest Group . | . . . . Highest-Rated Group . | . . . . Highest-Rated Ally . | . . . . Total Orders . | . . . . Ally Attacks . | . . . . Total Damage . | . . . . Kills . | . . . . Allies Corrupted . | . . . . Allies Melted . | . . . . Intel | -11 -10 -10 -10 ------- Run | Yrd Mat Min Sub Active Infowar (turns) 312 | 10 251 . 51 Terrain 312 | 10 251 . 51 Robot Analysis Total . | . . . . Derelict Logs Recovered 3 | . . 3 . Drone Launches . | . . . . Drone Recoveries . | . . . . Exploration | -11 -10 -10 -10 ------------- Run | Yrd Mat Min Sub Turns Passed 1898 | 79 356 1125 338 Spaces Moved 883 | 48 138 582 115 Core 1 | 1 . . . Treads 55 | . . . 55 Legs 823 | 43 138 582 60 Wheels 4 | 4 . . . Hover . | . . . . Flight . | . . . . Fastest Speed 50 | 50 120 190 160 Average Speed 183 | 116 183 190 177 Slowest Speed 260 | 120 260 190 240 Overloaded Moves . | . . . . Propulsion Burnouts . | . . . . Robots Hopped . | . . . . Potential Cave-ins . | . . . . Cave-ins Triggered . | . . . . Exploration Rate (%) 33 | 3 24 98 9 Regions Visited 3 Branch Regions 2 Pre-discovered Areas 2 | . . 2 . Known Exits Taken . | . . . . Unknown Exits Taken 3 | 1 1 1 . Scrap Searched 2 | . . 2 . Spaces Dug . | . . . . Terrain Destroyed 38 | . . 15 23 Melee . | . . . . Projectile . | . . . . AOE 38 | . . 15 23 Terrain Rammed . | . . . . Walls Destroyed . | . . . . Machines Disabled . | . . . . Actions | -11 -10 -10 -10 --------- Run | Yrd Mat Min Sub Total 1028 | 65 189 598 176 Wait 22 | 5 5 4 8 Move 880 | 47 137 581 115 Hop . | . . . . Pick Up 19 | 4 9 5 1 Fast Attach 8 | 7 1 . . Attach 8 | . 2 . 6 Detach . | . . . . Swap 11 | 1 4 2 4 Drop 3 | . . 3 . Fire 71 | 1 29 2 39 Melee . | . . . . Ram . | . . . . Kick 3 | . 2 1 . Crush 3 | . . . 3 Escape Stasis . | . . . . Rewire . | . . . . Trap . | . . . . Miscellaneous . | . . . . Route ------- -11/Scrapyard -10/Materials -10/Mines (discovered 3 exits: [*Mat x2] / [*Sub]) -10/Subcaves (discovered 2 exits: [*Mat] / [*Rec]) History --------- Turn | Location | Event 19 | -11/Scrapyard | Discovered new exit (range 15) 80 | -11/Scrapyard | Entered Materials 232 | -10/Materials | Core integrity fell below 50% 307 | -10/Materials | Build established: Mutant 363 | -10/Materials | Discovered new exit (range 16) 436 | -10/Materials | Entered Mines 1008 | -10/Mines | Discovered new exit (range 8) 1148 | -10/Mines | Discovered new exit (range 7) 1236 | -10/Mines | Found a hidden stash of uninstalled traps 1354 | -10/Mines | Received a Rocket Launcher from a helpful Derelict 1368 | -10/Mines | Learned Materials stockpile data 1383 | -10/Mines | Learned location of Zion (-6) 1419 | -10/Mines | Discovered new exit (range 6) 1561 | -10/Mines | Entered Subcaves 1569 | -10/Subcaves | Discovered new exit (range 12) 1709 | -10/Subcaves | Discovered new exit (range 10) 1784 | -10/Subcaves | Lost 3 parts (2n1w) 1869 | -10/Subcaves | Core integrity fell below 20% 1899 | -10/Subcaves | Destroyed by 6L-XI1(R) with Subdweller Laser Last Messages --------------- 01753_ Lgt. Assault Rifle destroyed. 01759_ System corrupted: Matter fused (-9). 01763_ Imp. Heat Sink fries itself beyond repair. 01767_ G-34 Mercenary destroyed. 01775_ Sml. Laser fries itself beyond repair. 01777_ Aluminum Leg fries itself beyond repair. 01778_ Subatomizers dissect the Heat Sink. 01782_ Acquired Heat Sink. 01783_ Acquired 48 matter. 01787_ Acquired 57 matter. 01793_ System corrupted: Heat flow error (+141). 01848_ Lgt. Assault Rifle destroyed. 01852_ System corrupted: Matter fused (-9). 01862_ Lgt. Assault Rifle destroyed. 01866_ Slammed into 6L-XI1(R). 01871_ 6L-XI1(R) knocked back. 01873_ Slammed into 6L-XI1(R). 01882_ Mining Laser destroyed. 01893_ Lgt. Treads destroyed. Map ----- +----------------------------------------------------+ | ?????????????????????????????????????????????????? | | ?????????????????????????????????????????????????? | | ?????????????????????????????????????????????????? | | ?????????????????????????????????????????????????# | | ?????????????????????????????????????????#???????? | | ?????????????????????????????????????????????????? | | ?????????????????????????????????????????????????? | | ???????????????????????????????????????????????#?? | | ?????????????????????????????????????#???????????? | | ??????????????????????????????????????#???????#??? | | ?????????????????????????????????????????#???????? | | ?????????????????????????????????????????????????? | | ??????????????????????#??????????????????##??????# | | ?????????#######????????????????????###???######## | | ?????????# ###?????????????????## #??## | | ?????????# ##?????????######## #??# | | ????????## ######????# # ##?### < | | ????????# # # ##???## ## ##### | | ?????????# #????# ## ## | | ?????????#< ####?# | | ?????????# #?# # | | ?????????# # #?# ### # ## | | ?????????##" ## ### #?# ########? | | ??????????#""" "## ## ##?## #??#?#??? | | ??????????########## ###???## ##???????? | | ???????????????????# ##@ #####??## ##????### | | ??????????????????# ## ##### #?## ### # | | ????????????????? # ##?## ### | | ??????????????? #### ##??# % | | ??????????????# ### ##?# ##### | | ?????????????# ???##???# # # ### | | ?????????????#????????## ##???## | | ?????????????????????## ### ##?????? | | ????????????????????## ##R### # ###?## #??????? | | ????????????????????# ## ####????# #??????? | | ????????????????????# ##?#### ##??????? | | ????????????????????## ## ##???????? | | ?????????????????????# ##????????? | | ?????????????????????# ##?????????? | | ????????????????????# ## ###??????????? | | ????????????????????##""## ### #????????????? | | ?????????????????????###?#####?# " #???????????? | | ???????????????????????????????# """ #??????????? | | ??????????????????????????????? """""#??????????? | | ??????????????????????????????? """ #??????????? | | ??????????????????????????????? ###" #??????????? | | ??????????????????????????????? ??? ??#??????????? | | ??????????????????????????????? ?????????????????? | | ??????????????????????????????? ?????????????????? | | ??????????????????????????????##?????????????????? | +----------------------------------------------------+ Best States ------------- Heat Dissipation 25 Energy Generation 10 Energy Capacity 250 Matter Stores 245 Matter Capacity 300 Sight Range 16 Terrain Scan Range 16 Terrain Scan Density 10 Core Shielding 20 Evasion (%) 55 Recoil Reduction 2 Item Schematics ----------------- None Robot Schematics ------------------ None Fabricated ------------ Nothing Repaired ---------- Nothing Studied --------- None Alien Tech Used ----------------- None Achievements -------------- None Challenges ------------ None Game ------ Seed AdvancedEnhancedArray Manual? 0 Play Time 00:10:12 Cumulative 128.7 hours Start 2025.11.22 @ 13:30:15 End 2025.11.22 @ 20:16:31 Sessions 2 Manual Loads 0 Difficulty Rogue Special Mode None Game No. 328 Rogue 326 Adventurer 2 Explorer 0 Win Type - Total 1 Types 1/0/0/0/0/0/0/0/0/0 Lore% 80 Gallery% 62 Achievement% 41 Wizard Run 0 Options --------- Layout 2 ASCII 0 Keyboard 0 Movement Numpad Keybinds 0 Fullscreen 2 Font 24/Smallcaps Map View 50x44 Zoom Use 0% Tactical HUD 1 Map Filters NONE Filters NONE Steam 1 RUN: 0578ebd2-6a3b-4d41-bf32-bf2e02a469b8